fUSD/lending_fUSD_20240508
["ID","MTS","AMOUNT","RATE_DAILY","PERIOD"]
[326615443,1715149839394,-4587.97821425,0.00012986,2]
[326615444,1715149839403,-206.0,0.0001299,2]
[326615445,1715149839413,-150.52,0.0001299,2]
[326615446,1715149839422,-150.52,0.0001299,2]
[326615447,1715149839432,-1622.42601181,0.00012998,2]
[326615448,1715149839442,-155.21746929,0.00012998,2]
[326615449,1715149839451,-370.19548805,0.00012998,2]
[326615450,1715149839461,-155.4680935,0.00012998,2]
[326615451,1715149839470,-1361.74157649,0.00012998,2]
[326615452,1715149839484,-157.35733175,0.00012998,2]
[326615453,1715149839495,-1643.57866966,0.00012998,2]
[326615454,1715149839505,-1268.25303457,0.00012998,2]
[326615455,1715149839516,-236.19693409,0.00012998,2]
[326615456,1715149839527,-5352.8000775,0.00012998,2]
[326615457,1715149839537,-4320.9586493,0.00012998,2]
[326615458,1715149839546,-55733.0467638,0.00012998,2]
[326615459,1715149839556,-10654.4001229,0.00012998,2]
[326615460,1715149839566,-5859.3084292,0.00012999,2]
[326615461,1715149839576,-158.30021813,0.00012999,2]
[326615462,1715149839587,-1384.0,0.00013,2]
[326615463,1715149839597,-307689.42084058,0.00013,2]
[326615464,1715149839611,-1790.84667809,0.00013,2]
[326615465,1715149839624,-1707.1492085,0.00013,2]
[326615466,1715149839636,-321.2868913,0.00013,2]
[326615467,1715149839648,-1018.8063003,0.00013,2]
[326615538,1715149841541,-2147.39207256,0.00012899,2]
[326615541,1715149841551,-3209943.3999017,0.00013,2]
[326615543,1715149841560,-944.42907425,0.00013,2]
[326615544,1715149841570,-1075.39970332,0.00013,2]
[326615545,1715149841580,-366.31861737,0.00013,2]
[326615547,1715149841589,-547.82959903,0.00013,2]
[326615549,1715149841599,-600.0,0.00013,2]
[326615551,1715149841609,-390.51265116,0.00013,2]
[326615553,1715149841619,-155.0,0.00013,2]
[326615555,1715149841628,-190.68189553,0.00013,2]
[326615557,1715149841638,-155.0,0.00013,2]
[326615558,1715149841648,-409.2190105,0.00013,2]
[326615559,1715149841657,-155.08863094,0.00013,2]
[326615560,1715149841667,-196.52425206,0.00013,2]
[326615561,1715149841677,-12836.4749432,0.00013,2]
[326615562,1715149841686,-7509.83070935,0.00013,2]
[326615563,1715149841696,-200.0,0.00013,2]
[326615564,1715149841706,-2000.0,0.00013,2]
[326615565,1715149841715,-200.0,0.00013,2]
[326615566,1715149841725,-2000.0,0.00013,2]
[326615567,1715149841734,-200.0,0.00013,2]
[326615568,1715149841743,-1755.20129,0.00013,2]
[326615569,1715149841753,-200.0,0.00013,2]
[326615570,1715149841762,-200.0,0.0001313,2]
[326615571,1715149841771,-2000.0,0.0001313,2]
[326615572,1715149841781,-200.0,0.0001313,2]
[326615573,1715149841790,-2000.0,0.0001313,2]
[326615574,1715149841799,-200.0,0.0001313,2]
[326615575,1715149841809,-200.0,0.0001313,2]
[326615576,1715149841818,-10128.0,0.00013209,2]
[326615577,1715149841828,-200.0,0.00013261,2]
[326615578,1715149841837,-2000.0,0.00013261,2]
[326615579,1715149841847,-200.0,0.00013261,2]
[326615580,1715149841858,-2000.0,0.00013261,2]
[326615581,1715149841868,-200.0,0.00013261,2]
[326615582,1715149841877,-283.71,0.00013322,2]
[326615583,1715149841886,-600.0,0.00013367,2]
[326615584,1715149841896,-200.0,0.00013394,2]
[326615585,1715149841905,-2000.0,0.00013394,2]
[326615586,1715149841914,-200.0,0.00013394,2]
[326615587,1715149841923,-2000.0,0.00013394,2]
[326615588,1715149841933,-200.0,0.00013394,2]
[326615589,1715149841943,-434.7,0.00013425,2]
[326615590,1715149841952,-453.58,0.00013425,2]
[326615591,1715149841962,-400.0,0.00013526,2]
[326615592,1715149841971,-200.0,0.00013528,2]
[326615593,1715149841981,-2000.0,0.00013528,2]
[326615594,1715149841991,-200.0,0.00013528,2]
[326615595,1715149842000,-2000.0,0.00013528,2]
[326615596,1715149842009,-200.0,0.00013528,2]
[326615597,1715149842019,-200.0,0.00013699,2]
[326615598,1715149842028,-200.0,0.00013699,2]
[326615599,1715149842038,-200.0,0.00013699,2]
[326615600,1715149842048,-200.0,0.00013699,2]
[326615601,1715149842057,-1000.0,0.00013699,2]
[326615602,1715149842066,-1000.0,0.00013699,2]
[326615603,1715149842076,-1000.0,0.00013699,2]
[326615604,1715149842085,-200.0,0.00013699,2]
[326615605,1715149842095,-200.0,0.00013699,2]
[326615606,1715149842104,-200.0,0.00013699,2]
[326615607,1715149842115,-200.0,0.00013699,2]
[326615608,1715149842126,-200.0,0.00013699,2]
[326615609,1715149842136,-500.0,0.00013699,2]
[326615610,1715149842146,-2751.0,0.00013699,2]
[326615611,1715149842155,-200.0,0.00013699,2]
[326615612,1715149842165,-284.23,0.000137,2]
[326615613,1715149842174,-284.23,0.000137,2]
[326615614,1715149842184,-284.23,0.000137,2]
[326615615,1715149842193,-284.23,0.000137,2]
[326615616,1715149842203,-284.23,0.000137,2]
[326615617,1715149842212,-282.1344729,0.00014,2]
[326615618,1715149842224,-157.340044,0.00014521,2]
[326615619,1715149842233,-283.71,0.00014802,2]
[326615620,1715149842242,-600.0,0.00014852,2]
[326615621,1715149842252,-179.33762742,0.00015,14]
[326615622,1715149842261,-1029.0758909,0.00015,2]
[326615623,1715149842270,-400.0,0.00015028,2]
[326615624,1715149842279,-225.7,0.00015068,2]
[326615625,1715149842290,-155.82,0.00015188,2]
[326615626,1715149842300,-10295.0,0.000154,3]
[326615627,1715149842309,-882.0,0.000154,2]
[326615628,1715149842318,-1000.0,0.000154,2]
[326615629,1715149842328,-892.0,0.000154,2]
[326615630,1715149842337,-167.0,0.00015831,2]
[326615631,1715149842346,-167.37,0.00015831,2]
[326615632,1715149842357,-17701.0,0.000159,5]
[326615633,1715149842367,-755.0,0.00016,2]
[326615634,1715149842376,-1019.0,0.00016,2]
[326615635,1715149842385,-3294.0,0.000161,2]
[326615636,1715149842395,-27457.15732316,0.00016186,2]
[326615637,1715149842404,-1093.0,0.000162,2]
[326615638,1715149842414,-1000.0,0.000162,2]
[326615639,1715149842423,-153.8305885,0.00016211,2]
[326615640,1715149842434,-10000.0,0.00016259,2]
[326615641,1715149842443,-283.71,0.00016282,2]
[326615642,1715149842453,-600.0,0.00016337,2]
[326615643,1715149842462,-225.7,0.00016438,2]
[326615644,1715149842474,-154.19350589,0.00016439,2]
[326615645,1715149842484,-1225.84618609,0.000165,2]
[326615646,1715149842494,-400.0,0.00016531,2]
[326615647,1715149842504,-155.94755228,0.00016896,2]
[326615648,1715149842514,-180.35146547,0.000169,2]
[326615649,1715149842524,-1754.06825748,0.00017,2]
[326615650,1715149842533,-167.0,0.00017137,2]
[326615651,1715149842543,-166.62605941,0.00017215,2]
[326615652,1715149842552,-154.31506026,0.00017243,2]
[326615653,1715149842562,-158.3299398,0.00017251,2]
[326615654,1715149842572,-153.8305885,0.00017386,2]
[326615655,1715149842582,-156.13471876,0.00017457,2]
[326615656,1715149842592,-153.8305885,0.00017518,2]
[326615657,1715149842602,-489.62087404,0.00017621,2]
[326615658,1715149842614,-317.08266994,0.00017621,2]
[326615659,1715149842623,-177.25288624,0.00017622,2]
[326615660,1715149842633,-210.0,0.00017623,2]
[326615662,1715149842642,-251.989,0.00017623,2]
[326615663,1715149842652,-161.0,0.00017623,2]
[326615664,1715149842661,-161.12,0.00017623,2]
[326615665,1715149842670,-193.658,0.00017623,2]
[326615666,1715149842680,-260.0,0.00017623,2]
[326615667,1715149842689,-194.213,0.00017623,2]
[326615668,1715149842699,-258.242,0.00017623,2]
[326615669,1715149842708,-272.828,0.00017623,2]
[326615670,1715149842717,-200.0,0.00017623,2]
[326615671,1715149842727,-200.0,0.00017623,2]
[326615672,1715149842736,-235.039,0.00017623,2]
[326615673,1715149842746,-275.0,0.00017623,2]
[326615674,1715149842755,-151.1,0.00017623,2]
[326615675,1715149842765,-282.498,0.00017623,2]
[326615676,1715149842885,-182.101,0.00017623,2]
[326615677,1715149842896,-150.958,0.00017623,2]
[326615678,1715149842905,-165.0,0.00017623,2]
[326615679,1715149842915,-245.683,0.00017623,2]
[326615680,1715149842924,-611.0,0.00017623,2]
[326615681,1715149842933,-438.0,0.00017623,2]
[326615682,1715149842942,-421.0,0.00017623,2]
[326615683,1715149842952,-809.0,0.00017623,2]
[326615684,1715149842961,-1478.0,0.00017623,2]
[326615685,1715149842970,-2431.0,0.00017623,2]
[326615686,1715149842980,-150.0,0.00017623,2]
[326615687,1715149842989,-150.0,0.00017623,2]
[326615688,1715149842999,-1139.0,0.00017623,2]
[326615689,1715149843008,-215.0,0.00017623,2]
[326615690,1715149843017,-444.0,0.00017623,2]
[326615691,1715149843027,-1645.0,0.00017623,2]
[326615692,1715149843037,-3154.0,0.00017623,2]
[326615693,1715149843046,-5745.0,0.00017623,2]
[326615694,1715149843056,-2301.0,0.00017623,2]
[326615695,1715149843065,-1397.0,0.00017623,2]
[326615696,1715149843075,-37800.0,0.00017623,2]
[326615697,1715149843084,-2295.0,0.00017623,2]
[326615698,1715149843093,-288.0,0.00017623,2]
[326615699,1715149843103,-972.0,0.00017623,2]
[326615700,1715149843117,-153.8305885,0.00017634,2]
[326615701,1715149843127,-283.71,0.00017762,2]
[326615702,1715149843136,-600.0,0.00017822,2]
[326615703,1715149843145,-3655.1747133,0.0001788,2]
[326615704,1715149843155,-3655.17471327,0.0001788,2]
[326615705,1715149843164,-414.79,0.00017965,2]
[326615706,1715149843173,-1815.93,0.00017965,2]
[326615707,1715149843183,-414.79,0.00017965,2]
[326615708,1715149843192,-912.46,0.00017965,2]
[326615709,1715149843202,-912.46,0.00017965,2]
[326615710,1715149843214,-414.01,0.00017965,2]
[326615711,1715149843224,-456.11,0.00017965,2]
[326615712,1715149843233,-912.46,0.00017965,2]
[326615713,1715149843244,-414.53,0.00017965,2]
[326615714,1715149843253,-912.46,0.00017965,2]
[326615715,1715149843263,-414.79,0.00017965,2]
[326615716,1715149843272,-865.46,0.00017965,2]
[326615717,1715149843282,-414.79,0.00017965,2]
[326615718,1715149843293,-414.79,0.00017965,2]
[326615719,1715149843302,-911.93,0.00017965,2]
[326615720,1715149843312,-750.0,0.00018,3]
[326615721,1715149843321,-1755.20129,0.00018,2]
[326615722,1715149843330,-561.58976072,0.00018012,2]
[326615723,1715149843338,-408.44946759,0.00018021,2]
[326615724,1715149843348,-918.4419149,0.00018023,2]
[326615725,1715149843360,-1192.02204108,0.00018027,2]
[326615726,1715149843369,-400.0,0.00018034,2]
[326615727,1715149843378,-154.31506026,0.00018044,2]
[326615728,1715149843387,-3655.17471327,0.00018372,2]
[326615729,1715149843396,-153.8305885,0.00018439,2]
[326615730,1715149843407,-167.0,0.00018444,2]
[326615731,1715149843416,-166.62605941,0.00018475,2]
[326615732,1715149843425,-153.8305885,0.00018521,2]
[326615733,1715149843436,-828.13,0.00018541,2]
[326615734,1715149843445,-155.97090031,0.0001866,2]
[326615735,1715149843455,-160.81383593,0.00018722,2]
[326615736,1715149843464,-7394.88,0.00018766,2]
[326615740,1715149843476,-911.93,0.00018924,2]
[326615744,1715149843485,-414.79,0.00018924,2]
[326615748,1715149843495,-1823.86,0.00018924,2]
[326615754,1715149843504,-414.79,0.00018924,2]
[326615758,1715149843514,-912.46,0.00018924,2]
[326615761,1715149843523,-421.08,0.00018924,2]
[326615765,1715149843533,-912.46,0.00018924,2]
[326615769,1715149843542,-912.46,0.00018924,2]
[326615772,1715149843551,-912.46,0.00018924,2]
[326615774,1715149843560,-7374.21,0.00018978,2]
[326615777,1715149843570,-7224.49,0.00018978,2]
[326615780,1715149843580,-155.15805148,0.00018986,2]
[326615783,1715149843589,-23352.06251079,0.00019,5]
[326615785,1715149843598,-5000.0,0.00019,2]
[326615788,1715149843608,-155.0,0.00019,2]
[326615790,1715149843617,-1000.0,0.00019078,2]
[326615792,1715149843626,-10000.0,0.00019078,2]
[326615794,1715149843636,-201.62193367,0.00019178,2]
[326615796,1715149843645,-500.0,0.00019178,2]
[326615798,1715149843655,-500.0,0.00019178,2]
[326615800,1715149843673,-515.63518767,0.00019178,2]
[326615802,1715149843683,-500.0,0.00019178,2]
[326615804,1715149843692,-500.0,0.00019178,2]
[326615806,1715149843701,-500.0,0.00019178,2]
[326615807,1715149843711,-500.0,0.00019178,2]
[326615808,1715149843720,-500.0,0.00019178,2]
[326615809,1715149843729,-500.0,0.00019178,2]
[326615810,1715149843739,-500.0,0.00019178,2]
[326615811,1715149843749,-500.0,0.00019178,2]
[326615812,1715149843758,-500.0,0.00019178,2]
[326615813,1715149843768,-538.12441928,0.00019178,2]
[326615814,1715149843777,-500.0,0.00019178,2]
[326615815,1715149843787,-500.0,0.00019178,2]
[326615816,1715149843796,-500.0,0.00019178,2]
[326615817,1715149843805,-500.0,0.00019178,2]
[326615818,1715149843815,-500.0,0.00019178,2]
[326615819,1715149843824,-500.0,0.00019178,2]
[326615820,1715149843833,-500.0,0.00019178,2]
[326615821,1715149843843,-500.0,0.00019178,2]
[326615822,1715149843852,-500.0,0.00019178,2]
[326615823,1715149843864,-500.0,0.00019178,2]
[326615824,1715149843873,-511.48012351,0.00019178,2]
[326615825,1715149843882,-500.0,0.00019178,2]
[326615826,1715149843891,-500.0,0.00019178,2]
[326615827,1715149843902,-500.0,0.00019178,2]
[326615828,1715149843911,-500.0,0.00019178,2]
[326615829,1715149843920,-500.0,0.00019178,2]
[326615830,1715149843929,-189.9871227,0.00019178,2]
[326615831,1715149843939,-516.03357406,0.00019178,2]
[326615832,1715149843948,-500.0,0.00019178,2]
[326615833,1715149843958,-500.0,0.00019178,2]
[326615834,1715149843967,-500.0,0.00019178,2]
[326615835,1715149843977,-500.0,0.00019178,2]
[326615836,1715149843986,-500.0,0.00019178,2]
[326615837,1715149843995,-500.0,0.00019178,2]
[326615838,1715149844005,-500.0,0.00019178,2]
[326615839,1715149844014,-500.0,0.00019178,2]
[326615840,1715149844024,-500.0,0.00019178,2]
[326615841,1715149844033,-500.0,0.00019178,2]
[326615842,1715149844043,-500.0,0.00019178,2]
[326615843,1715149844052,-589.70431171,0.00019178,2]
[326615844,1715149844062,-500.0,0.00019178,2]
[326615845,1715149844071,-500.0,0.00019178,2]
[326615846,1715149844080,-500.0,0.00019178,2]
[326615847,1715149844089,-500.0,0.00019178,2]
[326615848,1715149844098,-500.0,0.00019178,2]
[326615849,1715149844110,-500.0,0.00019178,2]
[326615850,1715149844119,-500.0,0.00019178,2]
[326615851,1715149844128,-500.0,0.00019178,2]
[326615852,1715149844137,-500.0,0.00019178,2]
[326615853,1715149844146,-500.0,0.00019178,2]
[326615854,1715149844155,-500.0,0.00019178,2]
[326615855,1715149844164,-500.0,0.00019178,2]
[326615856,1715149844175,-500.0,0.00019178,2]
[326615857,1715149844184,-593.58717701,0.00019178,2]
[326615858,1715149844193,-500.0,0.00019178,2]
[326615859,1715149844203,-310.60353358,0.00019178,2]
[326615860,1715149844212,-500.0,0.00019178,2]
[326615861,1715149844222,-500.0,0.00019178,2]
[326615862,1715149844232,-500.0,0.00019178,2]
[326615863,1715149844241,-500.0,0.00019178,2]
[326615864,1715149844250,-500.0,0.00019178,2]
[326615865,1715149844259,-500.0,0.00019178,2]
[326615866,1715149844270,-500.0,0.00019178,2]
[326615867,1715149844279,-500.0,0.00019178,2]
[326615868,1715149844288,-500.0,0.00019178,2]
[326615869,1715149844297,-500.0,0.00019178,2]
[326615870,1715149844309,-500.0,0.00019178,2]
[326615871,1715149844319,-302.79226012,0.00019178,2]
[326615872,1715149844328,-500.0,0.00019178,2]
[326615873,1715149844337,-500.0,0.00019178,2]
[326615874,1715149844347,-500.0,0.00019178,2]
[326615875,1715149844357,-500.0,0.00019178,2]
[326615876,1715149844366,-500.0,0.00019178,2]
[326615877,1715149844375,-500.0,0.00019178,2]
[326615878,1715149844385,-500.0,0.00019178,2]
[326615879,1715149844394,-513.33869658,0.00019178,2]
[326615880,1715149844403,-500.0,0.00019178,2]
[326615881,1715149844413,-500.0,0.00019178,2]
[326615882,1715149844422,-500.0,0.00019178,2]
[326615883,1715149844432,-500.0,0.00019178,2]
[326615884,1715149844441,-515.86391094,0.00019178,2]
[326615885,1715149844450,-500.0,0.00019178,2]
[326615886,1715149844459,-500.0,0.00019178,2]
[326615887,1715149844468,-500.0,0.00019178,2]
[326615888,1715149844478,-500.0,0.00019178,2]
[326615889,1715149844487,-500.0,0.00019178,2]
[326615890,1715149844496,-500.0,0.00019178,2]
[326615891,1715149844506,-500.0,0.00019178,2]
[326615892,1715149844515,-500.0,0.00019178,2]
[326615893,1715149844524,-500.0,0.00019178,2]
[326615894,1715149844533,-500.0,0.00019178,2]
[326615895,1715149844542,-500.0,0.00019178,2]
[326615896,1715149844552,-502.47562667,0.00019178,2]
[326615897,1715149844561,-500.0,0.00019178,2]
[326615898,1715149844569,-500.0,0.00019178,2]
[326615899,1715149844579,-500.0,0.00019178,2]
[326615900,1715149844588,-500.0,0.00019178,2]
[326615901,1715149844597,-509.27133715,0.00019178,2]
[326615902,1715149844607,-500.0,0.00019178,2]
[326615903,1715149844617,-500.0,0.00019178,2]
[326615904,1715149844626,-500.0,0.00019178,2]
[326615905,1715149844635,-502.19336558,0.00019178,2]
[326615906,1715149844644,-500.0,0.00019178,2]
[326615907,1715149844654,-502.96805329,0.00019178,2]
[326615908,1715149844663,-500.0,0.00019178,2]
[326615909,1715149844672,-500.0,0.00019178,2]
[326615910,1715149844681,-500.0,0.00019178,2]
[326615911,1715149844691,-509.03009277,0.00019178,2]
[326615912,1715149844700,-502.65627513,0.00019178,2]
[326615913,1715149844709,-505.66840243,0.00019178,2]
[326615914,1715149844719,-500.0,0.00019178,2]
[326615915,1715149844728,-500.0,0.00019178,2]
[326615916,1715149844738,-500.0,0.00019178,2]
[326615917,1715149844747,-510.47675595,0.00019178,2]
[326615918,1715149844756,-500.0,0.00019178,2]
[326615919,1715149844765,-507.14145569,0.00019178,2]
[326615920,1715149844775,-508.98792384,0.00019178,2]
[326615921,1715149844784,-500.0,0.00019178,2]
[326615922,1715149844793,-502.98921536,0.00019178,2]
[326615923,1715149844802,-508.96886371,0.00019178,2]
[326615924,1715149844811,-510.44673342,0.00019178,2]
[326615925,1715149844821,-500.0,0.00019178,2]
[326615926,1715149844830,-413.5,0.00019178,2]
[326615927,1715149844839,-500.0,0.00019178,2]
[326615928,1715149844848,-509.86478948,0.00019178,2]
[326615929,1715149844857,-503.39466242,0.00019178,2]
[326615930,1715149844867,-500.0,0.00019178,2]
[326615931,1715149844877,-500.0,0.00019178,2]
[326615932,1715149844886,-500.0,0.00019178,2]
[326615933,1715149844895,-514.59361133,0.00019178,2]
[326615934,1715149844904,-500.0,0.00019178,2]
[326615935,1715149844913,-506.10957796,0.00019178,2]
[326615936,1715149844923,-502.81258293,0.00019178,2]
[326615937,1715149844932,-500.0,0.00019178,2]
[326615938,1715149844942,-500.0,0.00019178,2]
[326615939,1715149844951,-500.0,0.00019178,2]
[326615940,1715149844961,-503.77753103,0.00019178,2]
[326615941,1715149844970,-513.92760764,0.00019178,2]
[326615942,1715149844979,-500.0,0.00019178,2]
[326615943,1715149844988,-500.0,0.00019178,2]
[326615944,1715149844997,-500.0,0.00019178,2]
[326615945,1715149845007,-500.0,0.00019178,2]
[326615946,1715149845016,-500.0,0.00019178,2]
[326615947,1715149845025,-511.03614159,0.00019178,2]
[326615948,1715149845035,-500.0,0.00019178,2]
[326615949,1715149845154,-500.0,0.00019178,2]
[326615950,1715149845163,-500.0,0.00019178,2]
[326615951,1715149845173,-514.94033202,0.00019178,2]
[326615952,1715149845182,-500.0,0.00019178,2]
[326615953,1715149845191,-520.82817653,0.00019178,2]
[326615954,1715149845201,-303.09537421,0.00019178,2]
[326615955,1715149845214,-500.0,0.00019178,2]
[326615956,1715149845223,-500.0,0.00019178,2]
[326615957,1715149845233,-608.03163085,0.00019178,2]
[326615958,1715149845243,-500.0,0.00019178,2]
[326615959,1715149845252,-500.0,0.00019178,2]
[326615960,1715149845261,-510.20660099,0.00019178,2]
[326615961,1715149845270,-155.96083205,0.00019178,2]
[326615962,1715149845279,-537.93106653,0.00019178,2]
[326615963,1715149845291,-622.14529011,0.00019178,2]
[326615964,1715149845300,-500.0,0.00019178,2]
[326615965,1715149845310,-500.0,0.00019178,2]
[326615966,1715149845319,-515.30368634,0.00019178,2]
[326615967,1715149845329,-190.27173915,0.00019178,2]
[326615968,1715149845338,-502.83063505,0.00019178,2]
[326615969,1715149845347,-508.60322637,0.00019178,2]
[326615970,1715149845357,-504.75381479,0.00019178,2]
[326615971,1715149845368,-500.0,0.00019178,2]
[326615972,1715149845378,-514.79451797,0.00019178,2]
[326615973,1715149845388,-500.0,0.00019178,2]
[326615974,1715149845398,-501.41408314,0.00019178,2]
[326615975,1715149845407,-513.81346716,0.00019178,2]
[326615976,1715149845416,-235.52315536,0.00019178,2]
[326615977,1715149845426,-500.0,0.00019178,2]
[326615978,1715149845436,-501.69359157,0.00019178,2]
[326615979,1715149845446,-500.87697274,0.00019178,2]
[326615980,1715149845455,-509.84143796,0.00019178,2]
[326615981,1715149845465,-507.62204142,0.00019178,2]
[326615982,1715149845477,-500.0,0.00019178,2]
[326615983,1715149845487,-500.0,0.00019178,2]
[326615984,1715149845496,-500.0,0.00019178,2]
[326615985,1715149845506,-500.0,0.00019178,2]
[326615986,1715149845515,-502.37081748,0.00019178,2]
[326615987,1715149845526,-496.97941625,0.00019178,2]
[326615988,1715149845535,-500.0,0.00019178,2]
[326615989,1715149845545,-500.0,0.00019178,2]
[326615990,1715149845554,-500.0,0.00019178,2]
[326615991,1715149845564,-508.95864342,0.00019178,2]
[326615992,1715149845573,-151.0,0.00019178,2]
[326615993,1715149845583,-500.0,0.00019178,2]
[326615994,1715149845592,-500.0,0.00019178,2]
[326615995,1715149845601,-502.17254039,0.00019178,2]
[326615996,1715149845613,-515.72129284,0.00019178,2]
[326615997,1715149845622,-506.65677455,0.00019178,2]
[326615998,1715149845631,-200.0241953,0.00019178,2]
[326615999,1715149845641,-501.3676341,0.00019178,2]
[326616000,1715149845650,-511.61544316,0.00019178,2]
[326616001,1715149845660,-500.0,0.00019178,2]
[326616002,1715149845670,-503.75390047,0.00019178,2]
[326616003,1715149845679,-500.0,0.00019178,2]
[326616004,1715149845688,-508.9220416,0.00019178,2]
[326616005,1715149845698,-500.0,0.00019178,2]
[326616006,1715149845708,-500.0,0.00019178,2]
[326616007,1715149845717,-500.0,0.00019178,2]
[326616008,1715149845726,-500.0,0.00019178,2]
[326616009,1715149845736,-500.0,0.00019178,2]
[326616010,1715149845745,-500.0,0.00019178,2]
[326616011,1715149845754,-517.5051269,0.00019178,2]
[326616012,1715149845764,-500.0,0.00019178,2]
[326616013,1715149845773,-500.0,0.00019178,2]
[326616014,1715149845783,-500.0,0.00019178,2]
[326616015,1715149845792,-500.0,0.00019178,2]
[326616016,1715149845801,-500.0,0.00019178,2]
[326616017,1715149845810,-506.62439215,0.00019178,2]
[326616018,1715149845820,-500.0,0.00019178,2]
[326616019,1715149845829,-512.10236455,0.00019178,2]
[326616020,1715149845839,-492.12150637,0.00019178,2]
[326616021,1715149845848,-522.04241516,0.00019178,2]
[326616022,1715149845858,-510.8887783,0.00019178,2]
[326616023,1715149845868,-515.15382945,0.00019178,2]
[326616024,1715149845877,-510.19380019,0.00019178,2]
[326616025,1715149845887,-506.82318718,0.00019178,2]
[326616026,1715149845896,-500.0,0.00019178,2]
[326616027,1715149845906,-500.0,0.00019178,2]
[326616028,1715149845916,-151.438996,0.00019178,2]
[326616029,1715149845925,-500.0,0.00019178,2]
[326616030,1715149845935,-511.54513379,0.00019178,2]
[326616031,1715149845944,-500.0,0.00019178,2]
[326616032,1715149845954,-500.0,0.00019178,2]
[326616033,1715149845963,-500.0,0.00019178,2]
[326616034,1715149845973,-500.0,0.00019178,2]
[326616035,1715149845983,-500.0,0.00019178,2]
[326616036,1715149845992,-500.0,0.00019178,2]
[326616037,1715149846002,-500.0,0.00019178,2]
[326616038,1715149846011,-500.0,0.00019178,2]
[326616039,1715149846020,-500.0,0.00019178,2]
[326616040,1715149846030,-500.0,0.00019178,2]
[326616041,1715149846039,-500.0,0.00019178,2]
[326616042,1715149846048,-500.0,0.00019178,2]
[326616043,1715149846058,-500.0,0.00019178,2]
[326616044,1715149846067,-500.0,0.00019178,2]
[326616045,1715149846076,-500.0,0.00019178,2]
[326616046,1715149846085,-500.0,0.00019178,2]
[326616047,1715149846094,-514.71128556,0.00019178,2]
[326616048,1715149846103,-500.0,0.00019178,2]
[326616049,1715149846114,-157.22522561,0.00019178,2]
[326616050,1715149846124,-511.05529773,0.00019178,2]
[326616051,1715149846133,-500.0,0.00019178,2]
[326616052,1715149846142,-506.95404704,0.00019178,2]
[326616053,1715149846152,-500.0,0.00019178,2]
[326616054,1715149846161,-500.0,0.00019178,2]
[326616055,1715149846170,-507.45009734,0.00019178,2]
[326616056,1715149846179,-511.19933564,0.00019178,2]
[326616057,1715149846188,-505.68930447,0.00019178,2]
[326616058,1715149846197,-500.0,0.00019178,2]
[326616059,1715149846207,-500.0,0.00019178,2]
[326616060,1715149846217,-500.0,0.00019178,2]
[326616061,1715149846229,-500.0,0.00019178,2]
[326616062,1715149846238,-506.46492096,0.00019178,2]
[326616063,1715149846248,-500.0,0.00019178,2]
[326616064,1715149846257,-500.0,0.00019178,2]
[326616065,1715149846267,-506.16205299,0.00019178,2]
[326616066,1715149846276,-565.41089281,0.00019178,2]
[326616067,1715149846287,-500.0,0.00019178,2]
[326616068,1715149846297,-519.98862741,0.00019178,2]